[Event "Titled Tuesday Blitz May 24 Early 2022"]
[White "Klekowski, Maciej"]
[Black "Lazavik, Denis"]
[WhiteFideId "1132717"]
[BlackFideId "13515110"]
[WhiteElo "2476"]
[BlackElo "2437"]
[Result "0-1"]
[Round "04"]
[TimeControl "180+1"]
[Date "2022.05.24"]
[WhiteClock "0:00:02"]
[BlackClock "0:00:35"]

1. c4 {[%clk 0:03:00]}  Nf6 {[%clk 0:02:59]} 2. Nc3 {[%clk 0:02:59]}  e5 {[%clk 0:02:59]} 3. g3 {[%clk 0:02:58]}  Bb4 {[%clk 0:02:58]} 4. Bg2 {[%clk 0:02:58]}  O-O {[%clk 0:02:58]} 5. Nf3 {[%clk 0:02:55]}  e4 {[%clk 0:02:56]} 6. Nd4 {[%clk 0:02:54]}  Re8 {[%clk 0:02:52]} 7. O-O {[%clk 0:02:54]}  Nc6 {[%clk 0:02:48]} 8. Nc2 {[%clk 0:02:53]}  Bxc3 {[%clk 0:02:48]} 9. bxc3 {[%clk 0:02:51]}  d5 {[%clk 0:02:47]} 10. cxd5 {[%clk 0:02:49]}  Qxd5 {[%clk 0:02:48]} 11. Ne3 {[%clk 0:02:36]}  Qh5 {[%clk 0:02:47]} 12. Rb1 {[%clk 0:02:34]}  b6 {[%clk 0:02:34]} 13. d3 {[%clk 0:02:31]}  Bh3 {[%clk 0:02:31]} 14. Qa4 {[%clk 0:02:25]}  Ne5 {[%clk 0:02:26]} 15. d4 {[%clk 0:01:05]}  Neg4 {[%clk 0:02:20]} 16. Nxg4 {[%clk 0:01:04]}  Nxg4 {[%clk 0:02:15]} 17. f3 {[%clk 0:01:03]}  exf3 {[%clk 0:02:00]} 18. exf3 {[%clk 0:00:59]}  Bxg2 {[%clk 0:01:37]} 19. fxg4 {[%clk 0:00:58]}  Qh3 {[%clk 0:01:38]} 20. Rd1 {[%clk 0:00:48]}  Bf3 {[%clk 0:01:33]} 21. Rb2 {[%clk 0:00:48]}  Bxd1 {[%clk 0:01:25]} 22. Qxd1 {[%clk 0:00:49]}  Re4 {[%clk 0:01:24]} 23. Qf1 {[%clk 0:00:40]}  Qxg4 {[%clk 0:01:20]} 24. Rf2 {[%clk 0:00:30]}  Qg6 {[%clk 0:01:19]} 25. Bf4 {[%clk 0:00:25]}  Rae8 {[%clk 0:01:19]} 26. Qc4 {[%clk 0:00:26]}  c5 {[%clk 0:01:12]} 27. Qb5 {[%clk 0:00:17]}  cxd4 {[%clk 0:01:07]} 28. cxd4 {[%clk 0:00:18]}  h6 {[%clk 0:01:03]} 29. d5 {[%clk 0:00:17]}  Qf5 {[%clk 0:00:41]} 30. Qc6 {[%clk 0:00:14]}  Qh3 {[%clk 0:00:38]} 31. Rf1 {[%clk 0:00:02]}  Re2 {[%clk 0:00:37]} 32. d6 {[%clk 0:00:02]}  Qxh2# {[%clk 0:00:35]} 0-1


[Site "https://www.chess.com"]

[Event "Titled Tuesday Blitz May 24 Early 2022"]
[White "Kovalev, Vladislav"]
[Black "Gurevich, Dmitry"]
[WhiteFideId "13504398"]
[BlackFideId "2000407"]
[WhiteElo "2530"]
[BlackElo "2506"]
[Result "1-0"]
[Round "04"]
[TimeControl "180+1"]
[Date "2022.05.25"]
[WhiteClock "0:00:53"]
[BlackClock "0:00:08"]

1. e4 {[%clk 0:03:00]}  c5 {[%clk 0:02:57]} 2. Be2 {[%clk 0:03:01]}  Nc6 {[%clk 0:02:56]} 3. d3 {[%clk 0:03:01]}  Nf6 {[%clk 0:02:53]} 4. f4 {[%clk 0:03:02]}  g6 {[%clk 0:02:48]} 5. Nf3 {[%clk 0:03:02]}  Bg7 {[%clk 0:02:48]} 6. O-O {[%clk 0:03:02]}  O-O {[%clk 0:02:48]} 7. Kh1 {[%clk 0:02:59]}  b5 {[%clk 0:02:45]} 8. a3 {[%clk 0:02:57]}  Bb7 {[%clk 0:02:43]} 9. c3 {[%clk 0:02:57]}  a5 {[%clk 0:02:41]} 10. Be3 {[%clk 0:02:58]}  d6 {[%clk 0:02:40]} 11. Nbd2 {[%clk 0:02:58]}  b4 {[%clk 0:02:36]} 12. d4 {[%clk 0:02:58]}  bxc3 {[%clk 0:02:30]} 13. bxc3 {[%clk 0:02:59]}  cxd4 {[%clk 0:02:23]} 14. cxd4 {[%clk 0:03:00]}  e5 {[%clk 0:02:22]} 15. fxe5 {[%clk 0:02:59]}  dxe5 {[%clk 0:02:21]} 16. d5 {[%clk 0:03:00]}  Nb8 {[%clk 0:01:52]} 17. Rb1 {[%clk 0:02:57]}  Ba6 {[%clk 0:01:50]} 18. Bxa6 {[%clk 0:02:37]}  Rxa6 {[%clk 0:01:49]} 19. Qa4 {[%clk 0:02:34]}  Nbd7 {[%clk 0:01:46]} 20. Rfc1 {[%clk 0:02:31]}  Ng4 {[%clk 0:01:40]} 21. Bg1 {[%clk 0:02:30]}  f5 {[%clk 0:01:39]} 22. Rc6 {[%clk 0:02:25]}  Ra8 {[%clk 0:01:33]} 23. Rb7 {[%clk 0:02:19]}  Ndf6 {[%clk 0:00:41]} 24. d6 {[%clk 0:02:12]}  Kh8 {[%clk 0:00:32]} 25. Qc4 {[%clk 0:01:47]}  Bh6 {[%clk 0:00:30]} 26. a4 {[%clk 0:01:13]}  fxe4 {[%clk 0:00:29]} 27. Nxe4 {[%clk 0:01:12]}  Nxe4 {[%clk 0:00:28]} 28. Qxe4 {[%clk 0:01:13]}  Rf4 {[%clk 0:00:27]} 29. Qd5 {[%clk 0:01:11]}  e4 {[%clk 0:00:22]} 30. Ne5 {[%clk 0:01:05]}  Qh4 {[%clk 0:00:14]} 31. Nxg4 {[%clk 0:00:55]}  Qxg4 {[%clk 0:00:08]} 32. Bd4+ {[%clk 0:00:53]} 1-0


[Site "https://www.chess.com"]

[Event "Titled Tuesday Blitz May 24 Early 2022"]
[White "Kowalysko, Roman"]
[Black "Tymrakiewicz, Rafal"]
[WhiteFideId "30918510"]
[BlackFideId "1108832"]
[WhiteElo "2161"]
[BlackElo "2205"]
[Result "0-1"]
[Round "04"]
[TimeControl "180+1"]
[Date "2022.05.25"]
[WhiteClock "0:01:30"]
[BlackClock "0:01:48"]

1. e4 {[%clk 0:03:00]}  Nf6 {[%clk 0:02:41]} 2. Nc3 {[%clk 0:03:00]}  d5 {[%clk 0:02:40]} 3. e5 {[%clk 0:02:57]}  Ne4 {[%clk 0:02:41]} 4. Nxe4 {[%clk 0:02:56]}  dxe4 {[%clk 0:02:40]} 5. d4 {[%clk 0:02:56]}  exd3 {[%clk 0:02:41]} 6. Bxd3 {[%clk 0:02:56]}  Nc6 {[%clk 0:02:41]} 7. Nf3 {[%clk 0:02:55]}  Bg4 {[%clk 0:02:40]} 8. Bf4 {[%clk 0:02:47]}  e6 {[%clk 0:02:38]} 9. O-O {[%clk 0:02:46]}  Bc5 {[%clk 0:02:38]} 10. c3 {[%clk 0:02:42]}  g5 {[%clk 0:02:36]} 11. Bg3 {[%clk 0:02:42]}  h5 {[%clk 0:02:35]} 12. b4 {[%clk 0:02:40]}  Bb6 {[%clk 0:02:32]} 13. Bb5 {[%clk 0:02:21]}  Qxd1 {[%clk 0:02:21]} 14. Raxd1 {[%clk 0:02:20]}  Bxf3 {[%clk 0:02:18]} 15. gxf3 {[%clk 0:02:18]}  h4 {[%clk 0:02:19]} 16. a4 {[%clk 0:02:14]}  hxg3 {[%clk 0:02:13]} 17. hxg3 {[%clk 0:02:07]}  a5 {[%clk 0:02:09]} 18. Bxc6+ {[%clk 0:02:04]}  bxc6 {[%clk 0:02:09]} 19. bxa5 {[%clk 0:02:01]}  Rxa5 {[%clk 0:02:07]} 20. Rd3 {[%clk 0:01:58]}  Rxe5 {[%clk 0:02:05]} 21. Rfd1 {[%clk 0:01:58]}  Rd5 {[%clk 0:02:05]} 22. c4 {[%clk 0:01:56]}  Rxd3 {[%clk 0:02:04]} 23. Rxd3 {[%clk 0:01:56]}  Ke7 {[%clk 0:02:04]} 24. Kg2 {[%clk 0:01:49]}  Ra8 {[%clk 0:02:03]} 25. Ra3 {[%clk 0:01:48]}  Bc5 {[%clk 0:02:04]} 26. Ra2 {[%clk 0:01:48]}  Bb4 {[%clk 0:02:04]} 27. g4 {[%clk 0:01:48]}  Kd6 {[%clk 0:02:04]} 28. Kg3 {[%clk 0:01:47]}  e5 {[%clk 0:02:02]} 29. Re2 {[%clk 0:01:43]}  f6 {[%clk 0:02:02]} 30. Ra2 {[%clk 0:01:43]}  Kc5 {[%clk 0:02:02]} 31. Kg2 {[%clk 0:01:43]}  Kxc4 {[%clk 0:02:03]} 32. Kg3 {[%clk 0:01:44]}  Kb3 {[%clk 0:02:01]} 33. Ra1 {[%clk 0:01:44]}  c5 {[%clk 0:02:00]} 34. a5 {[%clk 0:01:42]}  c4 {[%clk 0:02:00]} 35. a6 {[%clk 0:01:42]}  c3 {[%clk 0:02:01]} 36. a7 {[%clk 0:01:43]}  c2 {[%clk 0:02:01]} 37. f4 {[%clk 0:01:43]}  exf4+ {[%clk 0:02:01]} 38. Kg2 {[%clk 0:01:42]}  Bd2 {[%clk 0:02:01]} 39. f3 {[%clk 0:01:42]}  c1=Q {[%clk 0:02:01]} 40. Ra6 {[%clk 0:01:35]}  Qc2 {[%clk 0:01:48]} 41. Kh3 {[%clk 0:01:31]}  Rh8+ {[%clk 0:01:47]} 42. Kg2 {[%clk 0:01:31]}  Be3+ {[%clk 0:01:47]} 43. Kf1 {[%clk 0:01:30]}  Rh1# {[%clk 0:01:48]} 0-1


[Site "https://www.chess.com"]

[Event "Titled Tuesday Blitz May 24 Early 2022"]
[White "Lobachev, Yury"]
[Black "Dmitrenko, Viktor"]
[WhiteFideId "24138177"]
[BlackFideId "14110270"]
[WhiteElo "2309"]
[BlackElo "2218"]
[Result "0-1"]
[Round "04"]
[TimeControl "180+1"]
[Date "2022.05.25"]
[WhiteClock "0:00:02"]
[BlackClock "0:00:38"]

1. c4 {[%clk 0:03:00]}  c6 {[%clk 0:03:00]} 2. Nc3 {[%clk 0:02:59]}  e5 {[%clk 0:02:58]} 3. g3 {[%clk 0:02:59]}  Nf6 {[%clk 0:02:57]} 4. Bg2 {[%clk 0:02:59]}  d5 {[%clk 0:02:57]} 5. cxd5 {[%clk 0:02:58]}  cxd5 {[%clk 0:02:57]} 6. d4 {[%clk 0:02:58]}  e4 {[%clk 0:02:41]} 7. Bg5 {[%clk 0:02:57]}  Bb4 {[%clk 0:02:36]} 8. e3 {[%clk 0:02:54]}  Bxc3+ {[%clk 0:02:31]} 9. bxc3 {[%clk 0:02:53]}  O-O {[%clk 0:02:32]} 10. Ne2 {[%clk 0:02:51]}  Nbd7 {[%clk 0:02:21]} 11. O-O {[%clk 0:02:47]}  h6 {[%clk 0:02:13]} 12. Bxf6 {[%clk 0:02:41]}  Nxf6 {[%clk 0:02:14]} 13. Qb3 {[%clk 0:02:41]}  Bg4 {[%clk 0:02:04]} 14. Rfe1 {[%clk 0:02:32]}  Qd7 {[%clk 0:02:00]} 15. c4 {[%clk 0:02:29]}  dxc4 {[%clk 0:01:54]} 16. Qxc4 {[%clk 0:02:30]}  Rac8 {[%clk 0:01:53]} 17. Qb3 {[%clk 0:02:24]}  Rc6 {[%clk 0:01:53]} 18. Nc3 {[%clk 0:02:16]}  Bf3 {[%clk 0:01:49]} 19. Na4 {[%clk 0:01:18]}  b6 {[%clk 0:01:41]} 20. Rac1 {[%clk 0:01:16]}  Rfc8 {[%clk 0:01:40]} 21. Rxc6 {[%clk 0:01:16]}  Rxc6 {[%clk 0:01:33]} 22. Nb2 {[%clk 0:01:07]}  Qc8 {[%clk 0:01:19]} 23. h3 {[%clk 0:00:53]}  Rc3 {[%clk 0:01:13]} 24. Qa4 {[%clk 0:00:49]}  Rc2 {[%clk 0:01:11]} 25. Qb3 {[%clk 0:00:43]}  Rc1 {[%clk 0:01:04]} 26. Rxc1 {[%clk 0:00:29]}  Qxc1+ {[%clk 0:01:01]} 27. Kh2 {[%clk 0:00:30]}  Qd2 {[%clk 0:00:54]} 28. Bxf3 {[%clk 0:00:01]}  exf3 {[%clk 0:00:55]} 29. Nd3 {[%clk 0:00:02]}  Ne4 {[%clk 0:00:54]} 30. Kg1 {[%clk 0:00:02]}  Nxf2 {[%clk 0:00:39]} 31. Nxf2 {[%clk 0:00:02]}  Qe1+ {[%clk 0:00:38]} 0-1


[Site "https://www.chess.com"]

[Event "Titled Tuesday Blitz May 24 Early 2022"]
[White "Macovei, Andrei"]
[Black "Pein, Jonathan"]
[WhiteFideId "13904680"]
[BlackFideId "417092"]
[WhiteElo "2472"]
[BlackElo "2140"]
[Result "0-1"]
[Round "04"]
[TimeControl "180+1"]
[Date "2022.05.25"]
[WhiteClock "0:01:45"]
[BlackClock "0:01:54"]

1. e4 {[%clk 0:03:00]}  e5 {[%clk 0:02:55]} 2. Nf3 {[%clk 0:02:36]}  d6 {[%clk 0:02:55]} 3. d4 {[%clk 0:02:31]}  exd4 {[%clk 0:02:56]} 4. Nxd4 {[%clk 0:02:31]}  Nf6 {[%clk 0:02:56]} 5. Nc3 {[%clk 0:02:28]}  g6 {[%clk 0:02:57]} 6. g3 {[%clk 0:02:28]}  Bg7 {[%clk 0:02:57]} 7. Bg2 {[%clk 0:02:28]}  O-O {[%clk 0:02:58]} 8. O-O {[%clk 0:02:29]}  Nc6 {[%clk 0:02:59]} 9. Nde2 {[%clk 0:02:28]}  Re8 {[%clk 0:02:56]} 10. h3 {[%clk 0:02:28]}  Bd7 {[%clk 0:02:50]} 11. Be3 {[%clk 0:02:27]}  b5 {[%clk 0:02:51]} 12. a3 {[%clk 0:02:17]}  a5 {[%clk 0:02:51]} 13. g4 {[%clk 0:02:14]}  b4 {[%clk 0:02:48]} 14. axb4 {[%clk 0:02:14]}  axb4 {[%clk 0:02:49]} 15. Rxa8 {[%clk 0:02:14]}  Qxa8 {[%clk 0:02:50]} 16. Nb5 {[%clk 0:02:15]}  Qb7 {[%clk 0:02:38]} 17. Nbd4 {[%clk 0:02:12]}  Nxe4 {[%clk 0:02:36]} 18. Qd3 {[%clk 0:02:12]}  Nxd4 {[%clk 0:02:34]} 19. Bxd4 {[%clk 0:02:09]}  Bb5 {[%clk 0:01:57]} 20. Qe3 {[%clk 0:01:53]}  Bxe2 {[%clk 0:01:54]} 21. Bxg7 {[%clk 0:01:52]}  Bxf1 {[%clk 0:01:54]} 22. Bh8 {[%clk 0:01:45]} 0-1


[Site "https://www.chess.com"]

[Event "Titled Tuesday Blitz May 24 Early 2022"]
[White "Maksimenko, Viktor"]
[Black "Andreikin, Dmitry"]
[WhiteFideId "13710478"]
[BlackFideId "4158814"]
[WhiteElo "2269"]
[BlackElo "2736"]
[Result "0-1"]
[Round "04"]
[TimeControl "180+1"]
[Date "2022.05.24"]
[WhiteClock "0:00:34"]
[BlackClock "0:01:34"]

1. d4 {[%clk 0:03:00]}  Nf6 {[%clk 0:02:59]} 2. c4 {[%clk 0:03:00]}  e6 {[%clk 0:03:00]} 3. Nf3 {[%clk 0:03:00]}  d5 {[%clk 0:03:00]} 4. g3 {[%clk 0:03:00]}  dxc4 {[%clk 0:02:57]} 5. Bg2 {[%clk 0:03:00]}  c6 {[%clk 0:02:57]} 6. Ne5 {[%clk 0:02:58]}  Bb4+ {[%clk 0:02:56]} 7. Nc3 {[%clk 0:02:39]}  Nd5 {[%clk 0:02:54]} 8. Bd2 {[%clk 0:02:27]}  Nb6 {[%clk 0:02:54]} 9. e3 {[%clk 0:02:17]}  N8d7 {[%clk 0:02:51]} 10. Ne4 {[%clk 0:01:49]}  Nxe5 {[%clk 0:02:43]} 11. dxe5 {[%clk 0:01:50]}  a5 {[%clk 0:02:29]} 12. a3 {[%clk 0:01:33]}  Bxd2+ {[%clk 0:02:27]} 13. Qxd2 {[%clk 0:01:33]}  O-O {[%clk 0:02:25]} 14. Nd6 {[%clk 0:01:29]}  f6 {[%clk 0:02:21]} 15. Qc3 {[%clk 0:01:15]}  Nd5 {[%clk 0:02:18]} 16. Qxc4 {[%clk 0:01:08]}  fxe5 {[%clk 0:02:18]} 17. Ne4 {[%clk 0:01:09]}  b6 {[%clk 0:01:51]} 18. Qxc6 {[%clk 0:01:05]}  Bd7 {[%clk 0:01:51]} 19. Qd6 {[%clk 0:00:57]}  Bb5 {[%clk 0:01:50]} 20. Qxe6+ {[%clk 0:00:56]}  Kh8 {[%clk 0:01:50]} 21. Rd1 {[%clk 0:00:56]}  Bc4 {[%clk 0:01:38]} 22. Nd6 {[%clk 0:00:38]}  Nxe3 {[%clk 0:01:33]} 23. Nf7+ {[%clk 0:00:35]}  Rxf7 {[%clk 0:01:33]} 24. Rxd8+ {[%clk 0:00:34]}  Rxd8 {[%clk 0:01:34]} 0-1


[Site "https://www.chess.com"]

[Event "Titled Tuesday Blitz May 24 Early 2022"]
[White "Martin Carmona, Gaston Manuel"]
[Black "Osiecki, Stanislaw"]
[WhiteFideId "22284567"]
[BlackFideId "1102990"]
[WhiteElo "2162"]
[BlackElo "2127"]
[Result "1-0"]
[Round "04"]
[TimeControl "180+1"]
[Date "2022.05.25"]
[WhiteClock "0:01:24"]
[BlackClock "0:00:50"]

1. d4 {[%clk 0:03:00]}  Nf6 {[%clk 0:02:55]} 2. c4 {[%clk 0:03:01]}  g6 {[%clk 0:02:55]} 3. Nc3 {[%clk 0:03:01]}  Bg7 {[%clk 0:02:55]} 4. e4 {[%clk 0:03:01]}  d6 {[%clk 0:02:55]} 5. Nf3 {[%clk 0:03:01]}  O-O {[%clk 0:02:54]} 6. Be2 {[%clk 0:03:02]}  e5 {[%clk 0:02:53]} 7. dxe5 {[%clk 0:03:03]}  dxe5 {[%clk 0:02:53]} 8. Qxd8 {[%clk 0:03:04]}  Rxd8 {[%clk 0:02:53]} 9. Bg5 {[%clk 0:03:04]}  c6 {[%clk 0:02:52]} 10. O-O {[%clk 0:03:00]}  h6 {[%clk 0:02:52]} 11. Bxf6 {[%clk 0:02:47]}  Bxf6 {[%clk 0:02:50]} 12. Rfd1 {[%clk 0:02:48]}  Rxd1+ {[%clk 0:02:45]} 13. Rxd1 {[%clk 0:02:47]}  Be6 {[%clk 0:02:41]} 14. Na4 {[%clk 0:02:42]}  Na6 {[%clk 0:02:38]} 15. a3 {[%clk 0:02:38]}  g5 {[%clk 0:02:32]} 16. h3 {[%clk 0:02:34]}  Kf8 {[%clk 0:02:28]} 17. Ne1 {[%clk 0:02:26]}  Rd8 {[%clk 0:02:24]} 18. Rxd8+ {[%clk 0:02:25]}  Bxd8 {[%clk 0:02:24]} 19. Nc2 {[%clk 0:02:23]}  Ke7 {[%clk 0:02:14]} 20. Ne3 {[%clk 0:02:23]}  Nc7 {[%clk 0:02:10]} 21. Nc5 {[%clk 0:02:18]}  Bc8 {[%clk 0:02:06]} 22. Bg4 {[%clk 0:02:18]}  Ne6 {[%clk 0:01:59]} 23. Nf5+ {[%clk 0:02:06]}  Kf6 {[%clk 0:01:51]} 24. Nxh6 {[%clk 0:02:06]}  Nxc5 {[%clk 0:01:50]} 25. Bxc8 {[%clk 0:02:07]}  b6 {[%clk 0:01:38]} 26. Ng4+ {[%clk 0:02:03]}  Ke7 {[%clk 0:01:37]} 27. Nxe5 {[%clk 0:02:02]}  Nxe4 {[%clk 0:01:34]} 28. Nxc6+ {[%clk 0:02:02]}  Ke8 {[%clk 0:01:35]} 29. Nxa7 {[%clk 0:02:01]}  Bf6 {[%clk 0:01:31]} 30. b4 {[%clk 0:01:51]}  Bd4 {[%clk 0:01:30]} 31. Nb5 {[%clk 0:01:43]}  Bxf2+ {[%clk 0:01:28]} 32. Kf1 {[%clk 0:01:44]}  Be3 {[%clk 0:01:18]} 33. Ke2 {[%clk 0:01:41]}  Bc1 {[%clk 0:01:18]} 34. Kd3 {[%clk 0:01:38]}  Nf2+ {[%clk 0:01:13]} 35. Kd4 {[%clk 0:01:38]}  Kd8 {[%clk 0:01:10]} 36. Bf5 {[%clk 0:01:37]}  Ke7 {[%clk 0:00:55]} 37. Kd5 {[%clk 0:01:36]}  Kf6 {[%clk 0:00:55]} 38. Bc2 {[%clk 0:01:36]}  Be3 {[%clk 0:00:53]} 39. c5 {[%clk 0:01:32]}  bxc5 {[%clk 0:00:52]} 40. bxc5 {[%clk 0:01:33]}  Ke7 {[%clk 0:00:53]} 41. a4 {[%clk 0:01:32]}  Bd2 {[%clk 0:00:51]} 42. c6 {[%clk 0:01:30]}  Ba5 {[%clk 0:00:50]} 43. c7 {[%clk 0:01:26]}  Kd7 {[%clk 0:00:50]} 44. Bf5+ {[%clk 0:01:25]}  Ke7 {[%clk 0:00:50]} 45. c8=Q {[%clk 0:01:24]} 1-0


[Site "https://www.chess.com"]

[Event "Titled Tuesday Blitz May 24 Early 2022"]
[White "Martin, Lewis"]
[Black "Levitskiy, Andrey"]
[WhiteFideId "410551"]
[BlackFideId "14132885"]
[WhiteElo "2145"]
[BlackElo "2301"]
[Result "1/2-1/2"]
[Round "04"]
[TimeControl "180+1"]
[Date "2022.05.25"]
[WhiteClock "0:00:16"]
[BlackClock "0:00:06"]

1. e4 {[%clk 0:03:00]}  e6 {[%clk 0:03:00]} 2. d4 {[%clk 0:03:00]}  d5 {[%clk 0:03:00]} 3. Nd2 {[%clk 0:03:00]}  c5 {[%clk 0:03:00]} 4. exd5 {[%clk 0:02:57]}  Qxd5 {[%clk 0:03:01]} 5. dxc5 {[%clk 0:02:55]}  Bxc5 {[%clk 0:02:57]} 6. Ngf3 {[%clk 0:02:55]}  Nf6 {[%clk 0:02:50]} 7. Bd3 {[%clk 0:02:54]}  Nc6 {[%clk 0:01:55]} 8. O-O {[%clk 0:02:51]}  h6 {[%clk 0:01:42]} 9. Nb3 {[%clk 0:02:39]}  Bb6 {[%clk 0:01:41]} 10. Qe2 {[%clk 0:02:30]}  O-O {[%clk 0:01:22]} 11. Rd1 {[%clk 0:02:28]}  Qh5 {[%clk 0:01:16]} 12. Bf4 {[%clk 0:02:18]}  Re8 {[%clk 0:00:44]} 13. Ne5 {[%clk 0:01:55]}  Qxe2 {[%clk 0:00:37]} 14. Bxe2 {[%clk 0:01:54]}  Ne4 {[%clk 0:00:33]} 15. Nd3 {[%clk 0:01:39]}  e5 {[%clk 0:00:30]} 16. Bg3 {[%clk 0:01:38]}  Nxg3 {[%clk 0:00:28]} 17. hxg3 {[%clk 0:01:38]}  Nd4 {[%clk 0:00:26]} 18. Nxd4 {[%clk 0:01:36]}  Bxd4 {[%clk 0:00:27]} 19. c3 {[%clk 0:01:33]}  Bb6 {[%clk 0:00:28]} 20. Nb4 {[%clk 0:01:25]}  Be6 {[%clk 0:00:23]} 21. Nd5 {[%clk 0:01:18]}  Red8 {[%clk 0:00:18]} 22. Nxb6 {[%clk 0:01:13]}  axb6 {[%clk 0:00:16]} 23. a3 {[%clk 0:01:10]}  Bd5 {[%clk 0:00:12]} 24. Rd2 {[%clk 0:01:00]}  Bb3 {[%clk 0:00:11]} 25. Rxd8+ {[%clk 0:00:47]}  Rxd8 {[%clk 0:00:12]} 26. Bf3 {[%clk 0:00:45]}  Rd7 {[%clk 0:00:12]} 27. Kf1 {[%clk 0:00:44]}  f5 {[%clk 0:00:12]} 28. Ke1 {[%clk 0:00:44]}  e4 {[%clk 0:00:12]} 29. Be2 {[%clk 0:00:43]}  Kf7 {[%clk 0:00:08]} 30. a4 {[%clk 0:00:43]}  Kf6 {[%clk 0:00:05]} 31. a5 {[%clk 0:00:42]}  bxa5 {[%clk 0:00:05]} 32. Rxa5 {[%clk 0:00:42]}  g5 {[%clk 0:00:06]} 33. Rb5 {[%clk 0:00:38]}  Be6 {[%clk 0:00:05]} 34. Rb6 {[%clk 0:00:37]}  Ke7 {[%clk 0:00:05]} 35. Bb5 {[%clk 0:00:26]}  Rc7 {[%clk 0:00:06]} 36. Be2 {[%clk 0:00:22]}  Kf6 {[%clk 0:00:05]} 37. f3 {[%clk 0:00:18]}  Ke5 {[%clk 0:00:05]} 38. Rb5+ {[%clk 0:00:16]}  Kf6 {[%clk 0:00:05]} 39. Rb6 {[%clk 0:00:16]}  Ke5 {[%clk 0:00:05]} 40. Rb5+ {[%clk 0:00:16]}  Kf6 {[%clk 0:00:06]} 41. Rb6 {[%clk 0:00:16]} 1/2-1/2


[Site "https://www.chess.com"]

[Event "Titled Tuesday Blitz May 24 Early 2022"]
[White "McCoy, Owen"]
[Black "Lauridsen, Jesper Morch"]
[WhiteFideId "30924502"]
[BlackFideId "1401890"]
[WhiteElo "2476"]
[BlackElo "2250"]
[Result "1-0"]
[Round "04"]
[TimeControl "180+1"]
[Date "2022.05.25"]
[WhiteClock "0:01:58"]
[BlackClock "0:01:03"]

1. e4 {[%clk 0:03:00]}  e6 {[%clk 0:02:59]} 2. d4 {[%clk 0:03:00]}  d5 {[%clk 0:03:00]} 3. Nc3 {[%clk 0:03:01]}  Bb4 {[%clk 0:02:58]} 4. e5 {[%clk 0:03:00]}  c5 {[%clk 0:02:56]} 5. a3 {[%clk 0:03:01]}  Bxc3+ {[%clk 0:02:55]} 6. bxc3 {[%clk 0:03:02]}  Qa5 {[%clk 0:02:55]} 7. Bd2 {[%clk 0:02:52]}  Qa4 {[%clk 0:02:55]} 8. dxc5 {[%clk 0:02:41]}  Nd7 {[%clk 0:02:46]} 9. Rb1 {[%clk 0:02:39]}  Qxa3 {[%clk 0:02:40]} 10. Rb4 {[%clk 0:02:35]}  Ne7 {[%clk 0:02:27]} 11. Nf3 {[%clk 0:02:25]}  O-O {[%clk 0:02:24]} 12. Bd3 {[%clk 0:02:23]}  Nxc5 {[%clk 0:02:12]} 13. Bxh7+ {[%clk 0:02:19]}  Kxh7 {[%clk 0:02:11]} 14. Ng5+ {[%clk 0:02:13]}  Kg6 {[%clk 0:02:08]} 15. Rh4 {[%clk 0:02:12]}  f6 {[%clk 0:01:05]} 16. Qh5+ {[%clk 0:02:04]}  Kf5 {[%clk 0:01:04]} 17. Rf4+ {[%clk 0:01:59]}  Kxe5 {[%clk 0:01:03]} 18. Nf7# {[%clk 0:01:58]} 1-0


[Site "https://www.chess.com"]

[Event "Titled Tuesday Blitz May 24 Early 2022"]
[White "Melikhov, Evgeny V."]
[Black "Artemenko, Oleg"]
[WhiteFideId "4122046"]
[BlackFideId "14201798"]
[WhiteElo "1931"]
[BlackElo "2287"]
[Result "1/2-1/2"]
[Round "04"]
[TimeControl "180+1"]
[Date "2022.05.25"]
[WhiteClock "0:00:20"]
[BlackClock "0:01:08"]

1. d4 {[%clk 0:03:00]}  e6 {[%clk 0:02:57]} 2. c4 {[%clk 0:03:00]}  b6 {[%clk 0:02:57]} 3. Nc3 {[%clk 0:03:00]}  Bb7 {[%clk 0:02:55]} 4. e4 {[%clk 0:03:00]}  Bb4 {[%clk 0:02:55]} 5. e5 {[%clk 0:03:00]}  Ne7 {[%clk 0:02:49]} 6. Nf3 {[%clk 0:03:00]}  O-O {[%clk 0:02:47]} 7. Bd3 {[%clk 0:02:59]}  Nf5 {[%clk 0:02:43]} 8. O-O {[%clk 0:02:57]}  d6 {[%clk 0:02:43]} 9. Re1 {[%clk 0:02:45]}  dxe5 {[%clk 0:02:43]} 10. dxe5 {[%clk 0:02:45]}  Nd7 {[%clk 0:02:43]} 11. Bf4 {[%clk 0:02:42]}  Bxc3 {[%clk 0:02:42]} 12. bxc3 {[%clk 0:02:42]}  Nc5 {[%clk 0:02:43]} 13. Bc2 {[%clk 0:02:13]}  Qxd1 {[%clk 0:02:43]} 14. Raxd1 {[%clk 0:02:13]}  Bxf3 {[%clk 0:02:40]} 15. gxf3 {[%clk 0:02:13]}  Ne7 {[%clk 0:02:41]} 16. Be4 {[%clk 0:02:03]}  Nxe4 {[%clk 0:02:40]} 17. fxe4 {[%clk 0:02:03]}  Rad8 {[%clk 0:02:41]} 18. Be3 {[%clk 0:01:54]}  Nc6 {[%clk 0:02:36]} 19. f4 {[%clk 0:01:50]}  Na5 {[%clk 0:02:36]} 20. c5 {[%clk 0:01:49]}  Nc4 {[%clk 0:02:36]} 21. Bd4 {[%clk 0:01:43]}  c6 {[%clk 0:02:33]} 22. cxb6 {[%clk 0:01:41]}  axb6 {[%clk 0:02:34]} 23. a4 {[%clk 0:01:38]}  Ra8 {[%clk 0:02:33]} 24. Ra1 {[%clk 0:01:35]}  c5 {[%clk 0:02:27]} 25. Bf2 {[%clk 0:01:34]}  Rfd8 {[%clk 0:02:28]} 26. Red1 {[%clk 0:01:30]}  Kf8 {[%clk 0:02:22]} 27. Rxd8+ {[%clk 0:01:23]}  Rxd8 {[%clk 0:02:18]} 28. a5 {[%clk 0:01:24]}  Ra8 {[%clk 0:02:10]} 29. a6 {[%clk 0:01:21]}  Ke8 {[%clk 0:02:07]} 30. Ra4 {[%clk 0:01:13]}  Nb2 {[%clk 0:01:58]} 31. Ra2 {[%clk 0:01:00]}  Nd3 {[%clk 0:01:58]} 32. a7 {[%clk 0:01:00]}  Nxf2 {[%clk 0:01:42]} 33. Kxf2 {[%clk 0:00:58]}  Kd7 {[%clk 0:01:43]} 34. f5 {[%clk 0:00:58]}  Kc6 {[%clk 0:01:42]} 35. Ke3 {[%clk 0:00:53]}  Kb7 {[%clk 0:01:42]} 36. Rg2 {[%clk 0:00:52]}  g6 {[%clk 0:01:36]} 37. fxe6 {[%clk 0:00:50]}  fxe6 {[%clk 0:01:36]} 38. Rf2 {[%clk 0:00:50]}  Rxa7 {[%clk 0:01:37]} 39. Rf6 {[%clk 0:00:48]}  Ra3 {[%clk 0:01:36]} 40. Rxe6 {[%clk 0:00:49]}  Rxc3+ {[%clk 0:01:36]} 41. Kf4 {[%clk 0:00:49]}  Rh3 {[%clk 0:01:36]} 42. Re8 {[%clk 0:00:47]}  Kc6 {[%clk 0:01:35]} 43. e6 {[%clk 0:00:44]}  Rxh2 {[%clk 0:01:36]} 44. e5 {[%clk 0:00:41]}  Kd5 {[%clk 0:01:32]} 45. e7 {[%clk 0:00:41]}  Ke6 {[%clk 0:01:32]} 46. Rb8 {[%clk 0:00:40]}  Kxe7 {[%clk 0:01:31]} 47. Rb7+ {[%clk 0:00:39]}  Ke6 {[%clk 0:01:22]} 48. Rxb6+ {[%clk 0:00:39]}  Kd5 {[%clk 0:01:23]} 49. Rd6+ {[%clk 0:00:39]}  Kc4 {[%clk 0:01:24]} 50. e6 {[%clk 0:00:37]}  Re2 {[%clk 0:01:24]} 51. Kg5 {[%clk 0:00:37]}  h5 {[%clk 0:01:23]} 52. Kf6 {[%clk 0:00:34]}  h4 {[%clk 0:01:21]} 53. e7 {[%clk 0:00:34]}  h3 {[%clk 0:01:22]} 54. Re6 {[%clk 0:00:34]}  Rxe6+ {[%clk 0:01:21]} 55. Kxe6 {[%clk 0:00:34]}  h2 {[%clk 0:01:22]} 56. e8=Q {[%clk 0:00:34]}  h1=Q {[%clk 0:01:23]} 57. Qa4+ {[%clk 0:00:31]}  Kd3 {[%clk 0:01:21]} 58. Qa3+ {[%clk 0:00:31]}  Kd4 {[%clk 0:01:17]} 59. Qb2+ {[%clk 0:00:31]}  Ke3 {[%clk 0:01:15]} 60. Qc3+ {[%clk 0:00:26]}  Kf4 {[%clk 0:01:15]} 61. Qf6+ {[%clk 0:00:25]}  Ke3 {[%clk 0:01:13]} 62. Qc3+ {[%clk 0:00:24]}  Kf4 {[%clk 0:01:09]} 63. Qf6+ {[%clk 0:00:20]}  Ke3 {[%clk 0:01:08]} 64. Qc3+ {[%clk 0:00:20]} 1/2-1/2


[Site "https://www.chess.com"]